Cogmind - Beta 16 @@@ ROGUE MODE // 2025.10.26 @ 11:34:10 Player: Razzon Result: Destroyed by YA-VJG(R) with Subdweller Machine Gun Performance ------------- Evolutions (0) 0 Regions Visited (2) 400 Robots Destroyed (9) 45 Value Destroyed (277) 277 Prototype IDs (0) 0 Alien Tech Used (0) 0 Bonus (0) 0 TOTAL SCORE: 722 Bonus ------- None Cogmind --------- Core Integrity 0/250 Matter 294/300 Energy 250/250 System Corruption 0% Temperature Cool (0) Movement Walking (190) Ox1 Location -10/Subcaves Parts ------- > --- POWER (1) -------- Ion Engine > --- PROPULSION (2) --- Aluminum Leg > --- UTILITY (2) ------ Improved Heat Sink Small Storage Unit > --- WEAPON (2) ------- Assault Rifle > --- INVENTORY (8) ---- Ion Engine Makeshift Power Source Light Treads Light Treads Wheel Compact Wheel Subdweller Laser Grenade Launcher Peak State ------------ > --- POWER ------------ Ion Engine > --- PROPULSION ------- Aluminum Leg Aluminum Leg > --- UTILITY ---------- Improved Heat Sink Small Storage Unit > --- WEAPON ----------- Riot Gun Assault Rifle > --- INVENTORY -------- Ion Engine Makeshift Power Source Light Treads Light Treads Wheel Compact Wheel Subdweller Laser Grenade Launcher [Rating: 12] Favorites ----------- Power Ion Engine Engine Ion Engine Propulsion Aluminum Leg Leg Aluminum Leg Utility Small Storage Unit Device Improved Heat Sink Storage Small Storage Unit Weapon Assault Rifle Energy Gun Riot Gun Ballistic Gun Assault Rifle Build | -11 -10 -10 ------- Run | Yrd Mat Sub Slots Evolved . | . . . Power . | . . . Propulsion . | . . . Utility . | . . . Weapon . | . . . Parts Attached 13 | 6 5 2 Power 1 | 1 . . Engine 1 | 1 . . Core . | . . . Reactor . | . . . Propulsion 4 | 2 1 1 Treads . | . . . Leg 4 | 2 1 1 Wheel . | . . . Hover . | . . . Flight . | . . . Utility 3 | 1 2 . Device 2 | . 2 . Storage 1 | 1 . . Processor . | . . . Hackware . | . . . Protection . | . . . Artifact . | . . . Weapon 5 | 2 2 1 Energy Gun 2 | . 1 1 Energy Cannon . | . . . Ballistic Gun 3 | 2 1 . Ballistic Cannon . | . . . Launcher . | . . . Special Weapon . | . . . Impact Weapon . | . . . Slashing Weapon . | . . . Piercing Weapon . | . . . Special Melee Weapon . | . . . Unidentified Prototypes . | . . . Parts Lost 5 | . 1 4 Power . | . . . Propulsion 2 | . . 2 Utility . | . . . Weapon 3 | . 1 2 Highest Loss Streak 2 | . 1 2 To Critical Strikes . | . . . Average Backups 6 | 3 7 7 Power 1 | . 1 1 Propulsion 4 | 2 4 4 Utility . | . . . Weapon 1 | . 1 1 Tool/Special . | . . . Unused Backups 8 | . . 8 Power 2 | . . 2 Propulsion 4 | . . 4 Utility . | . . . Weapon 2 | . . 2 Tool/Special . | . . . Average Slot Usage (%) 99 | . 99 98 Engine 14 | . 14 14 Leg 27 | . 28 26 Device 13 | . 13 14 Storage 14 | . 14 14 Energy Gun 7 | . 6 9 Ballistic Gun 20 | . 21 18 Peak Build Rating 12 | 6 9 12 Average Rating 8 | 4 8 10 On Entrance 5 | . 6 9 Avg Prop Armor Cover (%) . | . . . Naked Turns . | . . . Heaviest Build 16 | 13 14 16 Greatest Support 20 | 20 20 20 Greatest Overweight (x) 3 | 3 . 1 Average Overweight (x) . | . . . Largest Inventory Capacity 8 | 8 8 8 Average Capacity 7 | 7 8 8 Most Carried 8 | 6 8 8 Average Carried 6 | 4 7 7 Final Capacity 8 | 8 8 8 Final Carried 8 | 6 7 8 Class Distribution -------------------- 100% | Mutant Dominant Class ---------------- Mutant | -10/Materials Mutant | -10/Subcaves Resources | -11 -10 -10 ----------- Run | Yrd Mat Sub Matter Collected 396 | 172 152 72 Remotely . | . . . Salvage Created 311 | . 239 72 Parts 22 | . 18 4 Haulers Intercepted . | . . . Recyclers Shooed . | . . . Parts Field Recycled . | . . . Retrieved Matter . | . . . Parts Self-Destructed 13 | . . 13 Prevented 1 | . . 1 Parts Restored . | . . . Kills | -11 -10 -10 ------- Run | Yrd Mat Sub Combat Hostiles Destroyed 9 | . 7 2 Guns 9 | . 7 2 Classes Destroyed 4 | . 2 2 Swarmer 3 | . 3 . Grunt 4 | . 4 . Sentry 1 | . . 1 Subdweller 1 | . . 1 Best Kill Streak 3 | . 3 1 Combat Bots Only 3 | . 3 1 Max Kills in Single Turn 1 | . 1 1 Gunslinging . | . . . Exploded . | . . . Melee . | . . . Uniques/NPCs Destroyed . | . . . Combat | -11 -10 -10 -------- Run | Yrd Mat Sub Hostile Shots Fired 73 | . 39 34 Missed 19 | . 11 8 Hits 54 | . 28 26 Projectile 54 | . 28 26 AOE 2 | . . 2 Critical Strikes 1 | . . 1 Damage Taken 889 | . 324 565 Core 268 | . 71 197 Absorbed by Shields . | . . . Core Remaining (%) 100 | 100 . . Volleys Fired 35 | . 23 12 Largest 2 | . 2 2 Hottest 70 | . 60 70 Shots Fired 68 | . 45 23 Gun 68 | . 45 23 Cannon . | . . . Launcher . | . . . Special . | . . . Kinetic 51 | . 32 19 Thermal . | . . . Explosive . | . . . Electromagnetic 17 | . 13 4 Robot Hit Streak 11 | . 11 7 Robot Miss Streak 3 | . 2 3 Penetration Max . | . . . Secondary Targets 2 | . 2 . Max Gunslinging Chain 1 | . 1 . Shots Hit Robots 48 | . 31 17 Core Hits 20 | . 14 6 Critical Kills . | . . . Critical Parts Destroyed . | . . . Critical Strikes . | . . . Melee Attacks . | . . . Impact . | . . . Slashing . | . . . Piercing . | . . . Sneak Attacks . | . . . Combat Hostiles . | . . . Follow-up Attacks . | . . . Damage Inflicted 643 | . 458 185 Guns 559 | . 374 185 Cannons . | . . . Explosions 84 | . 84 . Melee . | . . . Ramming . | . . . Kinetic 383 | . 227 156 Thermal 84 | . 84 . Explosive . | . . . Electromagnetic 176 | . 147 29 Impact . | . . . Slashing . | . . . Piercing . | . . . Highest Corruption . | . . . Average Corruption . | . . . Corruption Purged . | . . . Corruption Blocked . | . . . Overload Shots . | . . . Overflow Damage . | . . . Projectiles . | . . . Explosions . | . . . Melee . | . . . Knockbacks . | . . . Impact . | . . . Kinetic . | . . . Secondary . | . . . Self-Inflicted Damage 40 | . 40 . Shots 1 | . 1 . Rammed . | . . . Targets Rammed . | . . . Kicked . | . . . Crushed . | . . . Highest Temperature 18 | . 18 . Average Temperature 9 | . 9 . Received Heat Transfer 186 | . 90 96 Siege Activations . | . . . Martial Activations . | . . . Shielding Activations . | . . . Robots Disrupted . | . . . Combat Hostiles . | . . . Robots Corrupted . | . . . Combat Hostiles . | . . . Parts Fried . | . . . Impact Corruptions . | . . . Robots Melted . | . . . Combat Hostiles . | . . . Parts Melted . | . . . Heat Transferred 100 | . 100 . Parts Sabotaged . | . . . Parts Stolen . | . . . Parts Stripped . | . . . Power Chain Reactions 1 | . 1 . Alert | -11 -10 -10 ------- Run | Yrd Mat Sub Maximum Alert Level . | . . . Low Security (%) 100 | 100 100 . Level 1 . | . . . Level 2 . | . . . Level 3 . | . . . Level 4 . | . . . Level 5 . | . . . High Security . | . . . Max Security . | . . . Peak Influence 123 | . 123 . Initial . | . . . Average 39 | . 45 . Influence Increases 223 | . 203 20 Destroy 0b10 Robot/C 160 | . 140 20 Destroy Leader 30 | . 30 . Destroy Structure 3 | . 3 . Lose Combat Pursuer 30 | . 30 . Influence Decreases 223 | . 176 47 Entered New Map 14 | . . 14 Time Decay 199 | . 166 33 Lost Part 10 | . 10 . Squads Dispatched 1 | . 1 . Investigation . | . . . Extermination . | . . . Reinforcement 1 | . 1 . Assault . | . . . Garrison . | . . . Intercept . | . . . Searches Triggered . | . . . Construction Impeded . | . . . Haulers Reinforced . | . . . Active Scanning Responses . | . . . Cargo Convoy Interrupts . | . . . Stealth | -11 -10 -10 --------- Run | Yrd Mat Sub Distress Signals . | . . . Communications Jammed . | . . . Distress Signals . | . . . Times Spotted 16 | . 9 7 Peak Tracking Total 3 | . 3 3 Tactical Retreats 2 | . 2 . Traps | -11 -10 -10 ------- Run | Yrd Mat Sub Traps Triggered . | . . . Indirectly . | . . . Trap Hack Attempts . | . . . Triggered . | . . . Disarmed . | . . . Reprogrammed . | . . . Reused . | . . . Traps Extracted . | . . . Installed . | . . . Triggered . | . . . Machines | -11 -10 -10 ---------- Run | Yrd Mat Sub Machines Disabled . | . . . Max in Single Turn . | . . . Machines Repaired . | . . . Machines Dismantled . | . . . Machines Sabotaged . | . . . Overloaded Fab Kills . | . . . Hacking | -11 -10 -10 --------- Run | Yrd Mat Sub Machines Accessed 1 | . 1 . Terminals 1 | . 1 . Fabricators . | . . . Repair Stations . | . . . Recycling Units . | . . . Scanalyzers . | . . . Garrison Access . | . . . Total Hacks 4 | . 4 . Successful 1 | . 1 . Failed 3 | . 3 . Catastrophic 1 | . 1 . Database Lockouts . | . . . Manual 4 | . 4 . Terminals 4 | . 4 . Fabricators . | . . . Repair Stations . | . . . Recycling Units . | . . . Scanalyzers . | . . . Garrison Access . | . . . Terminal Hacks . | . . . Fabricator Hacks . | . . . Repair Station Hacks . | . . . Recycling Unit Hacks . | . . . Scanalyzer . | . . . Garrison Access Hacks . | . . . Unauthorized Hacks 1 | . 1 . Terminals 1 | . 1 . Assimilate 1 | . 1 . Fabricators . | . . . Repair Stations . | . . . Recycling Units . | . . . Scanalyzers . | . . . Garrison Access . | . . . Data Cores Recovered . | . . . Used . | . . . Hacking Detections 1 | . 1 . Full Trace Events . | . . . Feedback Events . | . . . Feedback Blocked . | . . . Robot Schematics Acquired . | . . . Robots Built . | . . . Authchips . | . . . Time . | . . . Total Robot Build Rating . | . . . Part Schematics Acquired . | . . . Parts Built . | . . . Authchips . | . . . Time . | . . . Total Part Build Rating . | . . . Part Studies Acquired . | . . . Parts Repaired . | . . . Time . | . . . Parts Recycled . | . . . Recycled Matter . | . . . Retrieved Matter . | . . . Retrieved Components . | . . . Parts Scanalyzed . | . . . Part Schematics Acquired . | . . . Parts Damaged . | . . . Bothacking | -11 -10 -10 ------------ Run | Yrd Mat Sub Used RIF Installer . | . . . Robots Hacked . | . . . Non-combat . | . . . Combat . | . . . Robot Hacks Applied . | . . . Relay Couplers Released . | . . . Fabnet Peak Effective % . | . . . Robots Rewired . | . . . Allies Hacked . | . . . Hacks Repelled . | . . . Allies | -11 -10 -10 -------- Run | Yrd Mat Sub Total Allies . | . . . Largest Group . | . . . Highest-Rated Group . | . . . Highest-Rated Ally . | . . . Total Orders . | . . . Ally Attacks . | . . . Total Damage . | . . . Kills . | . . . Allies Corrupted . | . . . Allies Melted . | . . . Intel | -11 -10 -10 ------- Run | Yrd Mat Sub Active Infowar (turns) . | . . . Robot Analysis Total . | . . . Derelict Logs Recovered 1 | . . 1 Drone Launches . | . . . Drone Recoveries . | . . . Exploration | -11 -10 -10 ------------- Run | Yrd Mat Sub Turns Passed 852 | 67 431 354 Spaces Moved 463 | 36 164 263 Core 9 | 9 . . Treads . | . . . Legs 454 | 27 164 263 Wheels . | . . . Hover . | . . . Flight . | . . . Fastest Speed 50 | 50 120 120 Average Speed 122 | 143 120 120 Slowest Speed 200 | 200 120 190 Overloaded Moves . | . . . Propulsion Burnouts . | . . . Robots Hopped . | . . . Potential Cave-ins . | . . . Cave-ins Triggered . | . . . Exploration Rate (%) 19 | 4 35 20 Regions Visited 2 Branch Regions 1 Pre-discovered Areas . | . . . Known Exits Taken . | . . . Unknown Exits Taken 2 | 1 1 . Scrap Searched . | . . . Spaces Dug . | . . . Terrain Destroyed 2 | . 2 . Melee . | . . . Projectile . | . . . AOE 2 | . 2 . Terrain Rammed . | . . . Walls Destroyed . | . . . Machines Disabled . | . . . Actions | -11 -10 -10 --------- Run | Yrd Mat Sub Total 686 | 48 358 280 Wait 164 | 1 163 . Move 461 | 35 163 263 Hop . | . . . Pick Up 11 | 6 2 3 Fast Attach 7 | 6 1 . Attach 3 | . 1 2 Detach . | . . . Swap 3 | . 3 . Drop 2 | . 2 . Fire 35 | . 23 12 Melee . | . . . Ram . | . . . Kick . | . . . Crush . | . . . Escape Stasis . | . . . Rewire . | . . . Trap . | . . . Miscellaneous . | . . . Route ------- -11/Scrapyard -10/Materials (discovered 2 exits: [*Min] / [*Sub]) -10/Subcaves (discovered 1 exit: Mat) History --------- Turn | Location | Event 2 | -11/Scrapyard | Met Revision 17 23 | -11/Scrapyard | Discovered new exit (range 16) 68 | -11/Scrapyard | Entered Materials 170 | -10/Materials | Discovered new exit (range 14) 306 | -10/Materials | Build established: Mutant 490 | -10/Materials | Discovered new exit (range 11) 499 | -10/Materials | Entered Subcaves 499 | -10/Subcaves | Identified exit to Materials 500 | -10/Subcaves | Approached by a straggling Scientist 578 | -10/Subcaves | Shifting Twisted Machinery released Riot Gun 593 | -10/Subcaves | Core integrity fell below 50% 692 | -10/Subcaves | Shifting Twisted Machinery released Sub. Laser 731 | -10/Subcaves | Shifting Twisted Machinery released Mak. Power Source 751 | -10/Subcaves | Shifting Twisted Machinery released Sub. Beam Cannon 852 | -10/Subcaves | Core integrity fell below 20% 852 | -10/Subcaves | Visited Clippyterm 853 | -10/Subcaves | Destroyed by YA-VJG(R) with Subdweller Machine Gun Last Messages --------------- 00583_ Acquired Riot Gun. 00588_ Aluminum Leg destroyed. 00598_ Critical hit (Burn: +37). 00601_ Lgt. Assault Rifle destroyed. 00608_ Y-45 Defender destroyed. 00614_ Imp. Ion Engine fries itself beyond repair. 00615_ Heat Sink fries itself beyond repair. 00616_ Acquired 58 matter. 00617_ Subatomizers dissect the Corrupted Hvy. Assault Rifle. 00624_ Corrupted Hvy. Assault Rifle self-destruct mechanism malfunctions. 00645_ Subatomizers dissect the Corrupted Hvy. Assault Rifle. Sub. Laser falls loose from the Twisted Machinery. 00700_ Acquired Sub. Laser. Mak. Power Source falls loose from the Twisted Machinery. 00746_ Acquired Mak. Power Source. Sub. Beam Cannon falls loose from the Twisted Machinery. 00843_ A thin wall crumbles away, revealing a door. 00850_ Riot Gun destroyed. 00852_ Aluminum Leg destroyed. 00852_ The door opens automatically. Map ----- +----------------------------------------------------+ | ???????????????????????????????????????? | | ???????????????????????????????????????? | | ???????????????????????????????????????? | | ???????????????????????????????????????? | | ???????????????????????????????????????? | | ???????????????????????????????????????? | | ???????????????????????????????????????? | | ???????????????????????????????????????? | | ???????????????????????????????????????? | | ???????????????????????????????????????? | | ???????????????????????????????????????? | | ???????????????????????????????????????? | | ????????????????????? ????????????????? | | ???????????????????? % ???????????????? | | ???????????????????? # ???????????????? | | ???????????????????? ##??????????????? | | ??????????????????## ???????????????? | | ???????????????### ????????????????? | | ???????????????# % ?????????????????? | | ??????????????? ??????????????????? | | ???????????????# ???????????????????? | | ???????????????? #???????????????????? | | ???????????????? #???????????????????? | | ??????????#"???## #???????##??????????? | | ??????????#"" ## #??????# #??????????? | | ??????????#"X @ ##??### #??????????? | | ??????????#"" ## ### #??????????? | | ??????????#"??## #???????????? | | ??????????????# ##??????????? | | ??????????????## #??????????? | | ???????????????## ##??????????? | | ???????????????## ##???????????? | | ???????????????# ###????????????? | | ???????????????# ####????????????? | | ???????????????# R#### ##???????????? | | ???????????????# ## ### ##?????????## | | ??????????????# # ##????????# | | ??????????????## " " #???????## | | ???????????????# " ## ##### ##??????# | | ??????????????# #?###???## #??????# | | ??????????????## "??????#### #??????# " | | ??????????????# ?????###" #??????##" | | ??????????????## ????## ##?????##" | | ???????????????? ????# ## #?????# " | | ???????????????? ????## ### #?????## | | ??????????????????""?### ?# ######## | | ??????????????????"" # ## # # ## ## | | ?????????????????? " " " ##" | | ?????????????????? " "" ## # | | ?????????????????? " ## # # # | +----------------------------------------------------+ Best States ------------- Heat Dissipation 39 Energy Generation 10 Energy Capacity 250 Matter Stores 300 Matter Capacity 300 Sight Range 16 Terrain Scan Density 10 Evasion (%) 55 Item Schematics ----------------- None Robot Schematics ------------------ None Fabricated ------------ Nothing Repaired ---------- Nothing Studied --------- None Alien Tech Used ----------------- None Achievements -------------- You Again Challenges ------------ None Game ------ Seed RegenerativeForceSystem Manual? 0 Play Time 00:09:46 Cumulative 31.4 hours Start 2025.10.26 @ 11:21:59 End 2025.10.26 @ 11:34:10 Sessions 1 Manual Loads 0 Difficulty Rogue Special Mode None Game No. 32 Rogue 32 Adventurer 0 Explorer 0 Win Type - Total 0 Types 0/0/0/0/0/0/0/0/0/0 Lore% 24 Gallery% 28 Achievement% 16 Wizard Run 0 Options --------- Layout 0 ASCII 0 Keyboard 1 Movement Numpad Keybinds 0 Fullscreen 1 Font 18/SmallcapsGlow Map View 76x50 Zoom Use 0% Tactical HUD 1 Map Filters NONE Filters NONE Steam 1 RUN: fdfb1c90-6fea-4320-bc4c-37f312091a75